[Event "*** SCC Grand Prix: Titled Tuesday Blitz"]
[Site "Chess.com"]
[Date "2020.06.23"]
[Round "8"]
[White "ExtremeLearner"]
[Black "Artyom_ChessMate"]
[Result "0-1"]
[WhiteElo "2219"]
[BlackElo "2519"]
[TimeControl "180+1"]
[EndTime "11:36:21 PDT"]
[Termination "Artyom_ChessMate won by checkmate"]

1. d4 {[%clk 0:03:00.9]} 1... d5 {[%clk 0:02:58.6]} 2. Bf4 {[%clk 0:02:59.3]}
2... Nf6 {[%clk 0:02:54.3]} 3. e3 {[%clk 0:02:58.8]} 3... c5 {[%clk 0:02:53.2]}
4. c3 {[%clk 0:02:58.1]} 4... Nc6 {[%clk 0:02:50.2]} 5. Nd2 {[%clk 0:02:56.1]}
5... cxd4 {[%clk 0:02:36.1]} 6. exd4 {[%clk 0:02:55.2]} 6... g6 {[%clk 0:02:34]}
7. Ngf3 {[%clk 0:02:51.6]} 7... Bg7 {[%clk 0:02:34]} 8. Bd3 {[%clk 0:02:44]}
8... O-O {[%clk 0:02:30.3]} 9. O-O {[%clk 0:02:41.8]} 9... Nh5 {[%clk
0:02:05.9]} 10. Bg5 {[%clk 0:02:41.4]} 10... h6 {[%clk 0:01:54.4]} 11. Bh4
{[%clk 0:02:40.8]} 11... Qb6 {[%clk 0:01:29.9]} 12. Qb1 {[%clk 0:02:34.5]} 12...
Nf4 {[%clk 0:01:25.9]} 13. Bc2 {[%clk 0:02:26.5]} 13... e5 {[%clk 0:01:25.5]}
14. dxe5 {[%clk 0:02:23.9]} 14... Nxe5 {[%clk 0:01:19.2]} 15. Nxe5 {[%clk
0:02:23.9]} 15... Bxe5 {[%clk 0:01:18.9]} 16. Nf3 {[%clk 0:02:17.1]} 16... Bg7
{[%clk 0:01:17.1]} 17. Re1 {[%clk 0:02:03.8]} 17... Bg4 {[%clk 0:01:15]} 18. Nd4
{[%clk 0:00:51.5]} 18... Rfe8 {[%clk 0:01:09.5]} 19. Bb3 {[%clk 0:00:40.1]}
19... Bxd4 {[%clk 0:00:52]} 20. cxd4 {[%clk 0:00:38.8]} 20... Qxd4 {[%clk
0:00:52.9]} 21. Bg3 {[%clk 0:00:33.4]} 21... Ne2+ {[%clk 0:00:52.4]} 22. Kh1
{[%clk 0:00:17.9]} 22... Nxg3+ {[%clk 0:00:52.4]} 23. fxg3 {[%clk 0:00:17.4]}
23... Qd2 {[%clk 0:00:38.8]} 24. Qc1 {[%clk 0:00:08.9]} 24... Rxe1+ {[%clk
0:00:26.9]} 25. Qxe1 {[%clk 0:00:08.9]} 25... Qxe1+ {[%clk 0:00:27.8]} 26. Rxe1
{[%clk 0:00:09.1]} 26... Be6 {[%clk 0:00:28.6]} 27. Rd1 {[%clk 0:00:08.5]} 27...
Rc8 {[%clk 0:00:28.4]} 28. Kg1 {[%clk 0:00:09]} 28... Rc5 {[%clk 0:00:26.7]} 29.
Kf2 {[%clk 0:00:05.8]} 29... Kg7 {[%clk 0:00:23.8]} 30. Ke3 {[%clk 0:00:06.2]}
30... Kf6 {[%clk 0:00:23.6]} 31. Kd4 {[%clk 0:00:06.7]} 31... b6 {[%clk
0:00:23.8]} 32. Rf1+ {[%clk 0:00:06.3]} 32... Ke7 {[%clk 0:00:24]} 33. a3 {[%clk
0:00:05.1]} 33... a5 {[%clk 0:00:23.6]} 34. Rf2 {[%clk 0:00:04.5]} 34... a4
{[%clk 0:00:23.3]} 35. Bd1 {[%clk 0:00:04.2]} 35... Rc4+ {[%clk 0:00:23.2]} 36.
Kd3 {[%clk 0:00:04.1]} 36... b5 {[%clk 0:00:22.5]} 37. Bf3 {[%clk 0:00:04]}
37... Kd6 {[%clk 0:00:20.4]} 38. g4 {[%clk 0:00:03.8]} 38... Bxg4 {[%clk
0:00:15.4]} 39. Bxg4 {[%clk 0:00:04.7]} 39... Rxg4 {[%clk 0:00:16]} 40. Rxf7
{[%clk 0:00:04.9]} 40... Rxg2 {[%clk 0:00:16.4]} 41. Rf6+ {[%clk 0:00:05.4]}
41... Kc5 {[%clk 0:00:16.7]} 42. h4 {[%clk 0:00:03.8]} 42... Rxb2 {[%clk
0:00:12.6]} 43. Rxg6 {[%clk 0:00:04]} 43... Rb3+ {[%clk 0:00:13]} 44. Kc2 {[%clk
0:00:04.2]} 44... Rxa3 {[%clk 0:00:13.6]} 45. Rxh6 {[%clk 0:00:04.7]} 45... Rh3
{[%clk 0:00:14.2]} 46. Rh8 {[%clk 0:00:04.8]} 46... b4 {[%clk 0:00:14.7]} 47.
Rc8+ {[%clk 0:00:04.5]} 47... Kd4 {[%clk 0:00:15.2]} 48. Rb8 {[%clk 0:00:04.2]}
48... b3+ {[%clk 0:00:14.5]} 49. Kb2 {[%clk 0:00:04]} 49... Rh2+ {[%clk
0:00:10.8]} 50. Kb1 {[%clk 0:00:04.3]} 50... Kd3 {[%clk 0:00:07.7]} 51. Ra8
{[%clk 0:00:02.8]} 51... Rxh4 {[%clk 0:00:03.3]} 52. Rxa4 {[%clk 0:00:02.7]}
52... Rxa4 {[%clk 0:00:03]} 53. Kb2 {[%clk 0:00:02.8]} 53... Ra2+ {[%clk
0:00:03.3]} 54. Kc1 {[%clk 0:00:03.7]} 54... Rc2+ {[%clk 0:00:03.6]} 55. Kb1
{[%clk 0:00:04.6]} 55... Kc3 {[%clk 0:00:02.7]} 56. Ka1 {[%clk 0:00:05.5]} 56...
Rc1# {[%clk 0:00:03.6]} 0-1

[Event "*** SCC Grand Prix: Titled Tuesday Blitz"]
[Site "Chess.com"]
[Date "2020.06.23"]
[Round "8"]
[White "PauloCesarCosta_sad"]
[Black "MuhittinBuker"]
[Result "1/2-1/2"]
[WhiteElo "2231"]
[BlackElo "1920"]
[TimeControl "180+1"]
[EndTime "11:36:21 PDT"]
[Termination "Game drawn by repetition"]

1. Nf3 {[%clk 0:03:00.9]} 1... Nf6 {[%clk 0:02:59.3]} 2. c4 {[%clk 0:03:00.8]}
2... c5 {[%clk 0:02:58.8]} 3. g3 {[%clk 0:03:00.4]} 3... Nc6 {[%clk 0:02:58.5]}
4. Bg2 {[%clk 0:03:00.8]} 4... g6 {[%clk 0:02:59.1]} 5. d4 {[%clk 0:03:00.8]}
5... cxd4 {[%clk 0:02:57.5]} 6. Nxd4 {[%clk 0:03:01.3]} 6... Bg7 {[%clk
0:02:56.9]} 7. Nc3 {[%clk 0:03:01.5]} 7... Nxd4 {[%clk 0:02:56.7]} 8. Qxd4
{[%clk 0:02:59.9]} 8... d6 {[%clk 0:02:57.2]} 9. O-O {[%clk 0:03:00.1]} 9... O-O
{[%clk 0:02:57.4]} 10. Qd3 {[%clk 0:03:00.5]} 10... Bf5 {[%clk 0:02:54.2]} 11.
e4 {[%clk 0:02:58.1]} 11... Bd7 {[%clk 0:02:54.6]} 12. e5 {[%clk 0:02:31.5]}
12... dxe5 {[%clk 0:02:48.9]} 13. Bxb7 {[%clk 0:02:30.8]} 13... Rb8 {[%clk
0:02:48.5]} 14. Bg2 {[%clk 0:02:22.1]} 14... Qc7 {[%clk 0:02:27.9]} 15. Re1
{[%clk 0:02:14.3]} 15... Be6 {[%clk 0:02:23.3]} 16. b3 {[%clk 0:02:08.8]} 16...
Rfd8 {[%clk 0:02:21.7]} 17. Qe2 {[%clk 0:01:57.6]} 17... Nd7 {[%clk 0:02:11.9]}
18. Nb5 {[%clk 0:01:51.8]} 18... Qa5 {[%clk 0:01:46.2]} 19. Bd2 {[%clk 0:01:51]}
19... Qa6 {[%clk 0:01:43.4]} 20. Be3 {[%clk 0:01:49.5]} 20... e4 {[%clk
0:01:25.5]} 21. Rad1 {[%clk 0:01:41.5]} 21... Nf6 {[%clk 0:01:17]} 22. Nc7
{[%clk 0:01:32.4]} 22... Qc8 {[%clk 0:01:14.4]} 23. Nxe6 {[%clk 0:01:30.4]}
23... Qxe6 {[%clk 0:01:12.8]} 24. Rxd8+ {[%clk 0:01:12.7]} 24... Rxd8 {[%clk
0:01:12.4]} 25. Bxa7 {[%clk 0:01:13.6]} 25... Qa6 {[%clk 0:01:00.1]} 26. Bc5
{[%clk 0:01:06.7]} 26... e6 {[%clk 0:00:59.7]} 27. Rd1 {[%clk 0:00:59.1]} 27...
Rxd1+ {[%clk 0:00:57.9]} 28. Qxd1 {[%clk 0:00:58.8]} 28... h5 {[%clk 0:00:51.3]}
29. a4 {[%clk 0:00:52.1]} 29... Qb7 {[%clk 0:00:45]} 30. Bd4 {[%clk 0:00:50.7]}
30... Ng4 {[%clk 0:00:35.6]} 31. Bxg7 {[%clk 0:00:50]} 31... Kxg7 {[%clk
0:00:35.3]} 32. Qd4+ {[%clk 0:00:48.4]} 32... e5 {[%clk 0:00:21.2]} 33. Qc3
{[%clk 0:00:40.8]} 33... f6 {[%clk 0:00:18.9]} 34. h3 {[%clk 0:00:39.6]} 34...
Nh6 {[%clk 0:00:18.6]} 35. Qe3 {[%clk 0:00:37.6]} 35... f5 {[%clk 0:00:16.4]}
36. Qc3 {[%clk 0:00:33.6]} 36... Qc7 {[%clk 0:00:14.9]} 37. c5 {[%clk
0:00:30.9]} 37... Nf7 {[%clk 0:00:14.8]} 38. b4 {[%clk 0:00:30]} 38... Kh6
{[%clk 0:00:10.4]} 39. b5 {[%clk 0:00:30.1]} 39... Qd7 {[%clk 0:00:09.1]} 40. c6
{[%clk 0:00:28.3]} 40... Qd1+ {[%clk 0:00:09.1]} 41. Kh2 {[%clk 0:00:28.8]}
41... f4 {[%clk 0:00:07.9]} 42. Qc4 {[%clk 0:00:23.1]} 42... Ng5 {[%clk
0:00:07.4]} 43. Qg8 {[%clk 0:00:13]} 43... fxg3+ {[%clk 0:00:06.5]} 44. fxg3
{[%clk 0:00:12.1]} 44... Nf3+ {[%clk 0:00:06.3]} 45. Bxf3 {[%clk 0:00:10.9]}
45... exf3 {[%clk 0:00:06.5]} 46. Qh8+ {[%clk 0:00:09.3]} 46... Kg5 {[%clk
0:00:06.8]} 47. Qxe5+ {[%clk 0:00:09.6]} 47... Kh6 {[%clk 0:00:07.3]} 48. Qh8+
{[%clk 0:00:08.3]} 48... Kg5 {[%clk 0:00:07.6]} 49. Qe5+ {[%clk 0:00:06]} 49...
Kh6 {[%clk 0:00:07.4]} 50. Qf4+ {[%clk 0:00:05.4]} 50... Kg7 {[%clk 0:00:06.6]}
51. Qe5+ {[%clk 0:00:05.6]} 51... Kf7 {[%clk 0:00:06.1]} 52. Qf4+ {[%clk
0:00:05.4]} 52... Kg8 {[%clk 0:00:05.3]} 53. Qb8+ {[%clk 0:00:04.8]} 53... Kg7
{[%clk 0:00:04.9]} 54. Qc7+ {[%clk 0:00:05.1]} 54... Kh6 {[%clk 0:00:05.1]} 55.
Qf4+ {[%clk 0:00:04.7]} 55... Kg7 {[%clk 0:00:04.7]} 56. Qc7+ {[%clk 0:00:04.3]}
56... Kh6 {[%clk 0:00:05]} 57. Qf4+ {[%clk 0:00:04.3]} 1/2-1/2

[Event "*** SCC Grand Prix: Titled Tuesday Blitz"]
[Site "Chess.com"]
[Date "2020.06.23"]
[Round "8"]
[White "Brave_spirit12"]
[Black "sasko1234"]
[Result "1-0"]
[WhiteElo "2343"]
[BlackElo "2406"]
[TimeControl "180+1"]
[EndTime "11:36:24 PDT"]
[Termination "Brave_spirit12 won by resignation"]

1. e4 {[%clk 0:03:00.9]} 1... d6 {[%clk 0:02:59.6]} 2. d4 {[%clk 0:03:00.9]}
2... Nf6 {[%clk 0:02:59.2]} 3. Nc3 {[%clk 0:03:00.6]} 3... c6 {[%clk 0:02:59.4]}
4. Bf4 {[%clk 0:02:59.1]} 4... Qa5 {[%clk 0:02:59.1]} 5. Qd2 {[%clk 0:02:57.8]}
5... e5 {[%clk 0:02:59.1]} 6. Be3 {[%clk 0:02:53.2]} 6... Be7 {[%clk 0:02:51.2]}
7. O-O-O {[%clk 0:02:42.1]} 7... b5 {[%clk 0:02:50.8]} 8. d5 {[%clk 0:02:37.4]}
8... b4 {[%clk 0:02:48.6]} 9. Nb1 {[%clk 0:02:33.1]} 9... Nxe4 {[%clk
0:02:38.9]} 10. Qd3 {[%clk 0:02:33]} 10... Nf6 {[%clk 0:02:20.4]} 11. dxc6
{[%clk 0:02:26.6]} 11... Nxc6 {[%clk 0:02:19.8]} 12. Qb5 {[%clk 0:02:20.9]}
12... Qxb5 {[%clk 0:02:12.2]} 13. Bxb5 {[%clk 0:02:20.4]} 13... Bd7 {[%clk
0:02:12.3]} 14. Nf3 {[%clk 0:02:17.2]} 14... Ng4 {[%clk 0:01:59.5]} 15. Nbd2
{[%clk 0:02:10.1]} 15... d5 {[%clk 0:01:24.9]} 16. h3 {[%clk 0:01:53.4]} 16...
Nxe3 {[%clk 0:01:24.6]} 17. fxe3 {[%clk 0:01:53.4]} 17... e4 {[%clk 0:00:53.6]}
18. Bxc6 {[%clk 0:01:05.2]} 18... Bxc6 {[%clk 0:00:52.8]} 19. Ne5 {[%clk
0:01:05.3]} 19... Bb7 {[%clk 0:00:46.8]} 20. Nb3 {[%clk 0:01:05]} 20... a5
{[%clk 0:00:38.3]} 21. Nd4 {[%clk 0:01:02.7]} 21... Bc5 {[%clk 0:00:17.7]} 22.
Rhf1 {[%clk 0:00:55.6]} 22... f6 {[%clk 0:00:15.3]} 23. Ng4 {[%clk 0:00:53]}
23... O-O {[%clk 0:00:13.2]} 24. Ne6 {[%clk 0:00:52.1]} 24... Rfc8 {[%clk
0:00:13.3]} 25. Nxc5 {[%clk 0:00:51.5]} 25... Rxc5 {[%clk 0:00:13]} 26. Rd2
{[%clk 0:00:46.6]} 26... a4 {[%clk 0:00:12.8]} 27. Kb1 {[%clk 0:00:42.6]} 27...
h5 {[%clk 0:00:11.7]} 28. Nf2 {[%clk 0:00:41.7]} 28... b3 {[%clk 0:00:11]} 29.
axb3 {[%clk 0:00:38.5]} 29... axb3 {[%clk 0:00:11.2]} 30. cxb3 {[%clk
0:00:38.6]} 30... Ba6 {[%clk 0:00:10.7]} 31. Rc1 {[%clk 0:00:34.7]} 31... Rac8
{[%clk 0:00:10.6]} 32. Rxc5 {[%clk 0:00:33.8]} 32... Rxc5 {[%clk 0:00:10.6]} 33.
b4 {[%clk 0:00:31.1]} 33... Rb5 {[%clk 0:00:10.4]} 34. Nd1 {[%clk 0:00:29.8]}
34... Rxb4 {[%clk 0:00:10.3]} 35. Rxd5 {[%clk 0:00:29.8]} 35... Bd3+ {[%clk
0:00:10.9]} 36. Kc1 {[%clk 0:00:23.5]} 36... Kf8 {[%clk 0:00:11.1]} 37. Rd4
{[%clk 0:00:19.9]} 37... Rxd4 {[%clk 0:00:10.1]} 38. exd4 {[%clk 0:00:20.5]}
38... Bf1 {[%clk 0:00:09.7]} 39. Ne3 {[%clk 0:00:19.8]} 39... Bd3 {[%clk
0:00:09.6]} 40. Kd2 {[%clk 0:00:20]} 40... Ke7 {[%clk 0:00:09.8]} 41. b4 {[%clk
0:00:17.2]} 41... g6 {[%clk 0:00:10.1]} 42. Nd1 {[%clk 0:00:16.2]} 42... Kd6
{[%clk 0:00:09.8]} 43. Ke3 {[%clk 0:00:16.4]} 43... g5 {[%clk 0:00:09.5]} 44. g4
{[%clk 0:00:15.1]} 44... hxg4 {[%clk 0:00:08.9]} 45. hxg4 {[%clk 0:00:15.7]}
45... Kd5 {[%clk 0:00:09.5]} 46. Nf2 {[%clk 0:00:15.9]} 46... Bc2 {[%clk
0:00:09.2]} 47. b5 {[%clk 0:00:16.1]} 47... Bb1 {[%clk 0:00:09.3]} 48. b6 {[%clk
0:00:16.1]} 48... Kc6 {[%clk 0:00:09.7]} 49. Nxe4 {[%clk 0:00:16.2]} 49... Kxb6
{[%clk 0:00:08.5]} 50. Nxf6 {[%clk 0:00:16.5]} 50... Kc6 {[%clk 0:00:08]} 51.
Ne4 {[%clk 0:00:17]} 51... Kd5 {[%clk 0:00:07.8]} 52. Nxg5 {[%clk 0:00:17.2]}
52... Bc2 {[%clk 0:00:08.4]} 53. Nh3 {[%clk 0:00:17.3]} 53... Bb1 {[%clk
0:00:08.7]} 54. Nf4+ {[%clk 0:00:17.6]} 54... Kd6 {[%clk 0:00:09.1]} 55. g5
{[%clk 0:00:18]} 55... Ke7 {[%clk 0:00:09.4]} 56. d5 {[%clk 0:00:17.4]} 56...
Kd6 {[%clk 0:00:09.3]} 57. Kd4 {[%clk 0:00:17.3]} 57... Bc2 {[%clk 0:00:08.9]}
58. g6 {[%clk 0:00:17.5]} 58... Bb1 {[%clk 0:00:09.2]} 59. g7 {[%clk 0:00:17.4]}
59... Bh7 {[%clk 0:00:09.3]} 60. Nh5 {[%clk 0:00:16.3]} 60... Bg8 {[%clk
0:00:09.6]} 61. Nf6 {[%clk 0:00:16]} 1-0

[Event "*** SCC Grand Prix: Titled Tuesday Blitz"]
[Site "Chess.com"]
[Date "2020.06.23"]
[Round "8"]
[White "winniethepooh04"]
[Black "TimKett"]
[Result "0-1"]
[WhiteElo "1801"]
[BlackElo "2216"]
[TimeControl "180+1"]
[EndTime "11:36:24 PDT"]
[Termination "TimKett won by checkmate"]

1. e4 {[%clk 0:03:00.9]} 1... e5 {[%clk 0:02:59.3]} 2. Nf3 {[%clk 0:02:59.7]}
2... Nc6 {[%clk 0:02:59.2]} 3. Bc4 {[%clk 0:02:58.8]} 3... Nf6 {[%clk
0:02:58.4]} 4. d3 {[%clk 0:02:57.6]} 4... Bc5 {[%clk 0:02:54.8]} 5. c3 {[%clk
0:02:56.9]} 5... O-O {[%clk 0:02:53.3]} 6. O-O {[%clk 0:02:55.3]} 6... a5 {[%clk
0:02:51.1]} 7. d4 {[%clk 0:02:54.1]} 7... exd4 {[%clk 0:02:39]} 8. cxd4 {[%clk
0:02:54.1]} 8... Bb6 {[%clk 0:02:34.4]} 9. d5 {[%clk 0:02:48.4]} 9... Nb4 {[%clk
0:02:21.1]} 10. e5 {[%clk 0:02:36]} 10... Ne8 {[%clk 0:02:12.5]} 11. Bg5 {[%clk
0:02:19.5]} 11... f6 {[%clk 0:02:12.1]} 12. exf6 {[%clk 0:02:11]} 12... Nxf6
{[%clk 0:02:09.8]} 13. d6+ {[%clk 0:02:09.8]} 13... Kh8 {[%clk 0:02:08.9]} 14.
Ne5 {[%clk 0:02:07.1]} 14... Qe8 {[%clk 0:01:44.8]} 15. Bxf6 {[%clk 0:01:57.4]}
15... Rxf6 {[%clk 0:01:28.7]} 16. Ng4 {[%clk 0:01:56.2]} 16... Rxd6 {[%clk
0:01:25.6]} 17. Qf3 {[%clk 0:01:41.5]} 17... Rg6 {[%clk 0:01:01.2]} 18. Bf7
{[%clk 0:01:29.8]} 18... Qf8 {[%clk 0:00:55]} 19. Bxg6 {[%clk 0:01:28.1]} 19...
Qxf3 {[%clk 0:00:54.4]} 20. gxf3 {[%clk 0:01:28.2]} 20... hxg6 {[%clk
0:00:54.6]} 21. Nc3 {[%clk 0:01:27.1]} 21... c6 {[%clk 0:00:50.3]} 22. Ne4
{[%clk 0:01:23.1]} 22... d5 {[%clk 0:00:49.6]} 23. Nd6 {[%clk 0:01:16.8]} 23...
Bxg4 {[%clk 0:00:46.7]} 24. fxg4 {[%clk 0:01:15.6]} 24... Rb8 {[%clk 0:00:39]}
25. Rae1 {[%clk 0:01:13.6]} 25... Bc5 {[%clk 0:00:35]} 26. Nf7+ {[%clk
0:01:05.1]} 26... Kg8 {[%clk 0:00:33.3]} 27. Ne5 {[%clk 0:01:05.4]} 27... Rd8
{[%clk 0:00:30.6]} 28. Nxg6 {[%clk 0:01:02.7]} 28... Nxa2 {[%clk 0:00:29]} 29.
Ra1 {[%clk 0:00:36.8]} 29... Nb4 {[%clk 0:00:27.8]} 30. Rxa5 {[%clk 0:00:36.3]}
30... Bb6 {[%clk 0:00:26.9]} 31. Ra3 {[%clk 0:00:34.7]} 31... d4 {[%clk
0:00:25.5]} 32. Rh3 {[%clk 0:00:34.3]} 32... Kf7 {[%clk 0:00:24]} 33. Ne5+
{[%clk 0:00:33.2]} 33... Ke6 {[%clk 0:00:23.2]} 34. Nc4 {[%clk 0:00:33.5]} 34...
Bc7 {[%clk 0:00:21]} 35. Rh5 {[%clk 0:00:32.3]} 35... b5 {[%clk 0:00:20.3]} 36.
Re1+ {[%clk 0:00:32.3]} 36... Kf7 {[%clk 0:00:17.9]} 37. Ne5+ {[%clk 0:00:32]}
37... Bxe5 {[%clk 0:00:17.9]} 38. Rhxe5 {[%clk 0:00:32.3]} 38... d3 {[%clk
0:00:18.3]} 39. g5 {[%clk 0:00:25.7]} 39... Rd4 {[%clk 0:00:14]} 40. R5e4 {[%clk
0:00:16.8]} 40... Rxe4 {[%clk 0:00:11.5]} 41. Rxe4 {[%clk 0:00:17]} 41... Nc2
{[%clk 0:00:11.1]} 42. g6+ {[%clk 0:00:12.9]} 42... Kf6 {[%clk 0:00:09.2]} 43.
Re8 {[%clk 0:00:12.6]} 43... c5 {[%clk 0:00:08.3]} 44. Rd8 {[%clk 0:00:12.5]}
44... c4 {[%clk 0:00:07.8]} 45. h4 {[%clk 0:00:12.4]} 45... Ke5 {[%clk 0:00:07]}
46. h5 {[%clk 0:00:12.2]} 46... Nd4 {[%clk 0:00:07.6]} 47. h6 {[%clk 0:00:09.6]}
47... d2 {[%clk 0:00:07.8]} 48. hxg7 {[%clk 0:00:07.7]} 48... d1=Q+ {[%clk
0:00:07.7]} 49. Kh2 {[%clk 0:00:07.8]} 49... Qh5+ {[%clk 0:00:07.7]} 50. Kg1
{[%clk 0:00:07]} 50... Qg5+ {[%clk 0:00:07.8]} 51. Kf1 {[%clk 0:00:06.3]} 51...
Qxd8 {[%clk 0:00:08.4]} 52. f4+ {[%clk 0:00:05]} 52... Kxf4 {[%clk 0:00:07]} 53.
Kg2 {[%clk 0:00:04.7]} 53... Qg8 {[%clk 0:00:07.1]} 54. Kf2 {[%clk 0:00:04.7]}
54... Qxg7 {[%clk 0:00:07.5]} 55. Ke1 {[%clk 0:00:05.5]} 55... Qxg6 {[%clk
0:00:07.9]} 56. Kd2 {[%clk 0:00:05.9]} 56... b4 {[%clk 0:00:07.5]} 57. b3 {[%clk
0:00:03.5]} 57... Qg2+ {[%clk 0:00:07.2]} 58. Kc1 {[%clk 0:00:03]} 58... Qc2#
{[%clk 0:00:07]} 0-1

[Event "*** SCC Grand Prix: Titled Tuesday Blitz"]
[Site "Chess.com"]
[Date "2020.06.23"]
[Round "8"]
[White "tan275"]
[Black "louis198"]
[Result "0-1"]
[WhiteElo "2277"]
[BlackElo "2492"]
[TimeControl "180+1"]
[EndTime "11:36:28 PDT"]
[Termination "louis198 won by checkmate"]

1. d4 {[%clk 0:03:00.9]} 1... e6 {[%clk 0:02:59.6]} 2. c4 {[%clk 0:03:01.1]}
2... d5 {[%clk 0:02:59.5]} 3. Nf3 {[%clk 0:03:00]} 3... Nf6 {[%clk 0:02:46.6]}
4. g3 {[%clk 0:03:00]} 4... Be7 {[%clk 0:02:43.7]} 5. Bg2 {[%clk 0:02:59.7]}
5... O-O {[%clk 0:02:44.3]} 6. O-O {[%clk 0:02:59.3]} 6... a5 {[%clk 0:02:40.3]}
7. Qc2 {[%clk 0:02:52.2]} 7... Nc6 {[%clk 0:02:37.4]} 8. Rd1 {[%clk 0:02:49.6]}
8... Nb4 {[%clk 0:02:29.1]} 9. Qc3 {[%clk 0:01:56.1]} 9... Ne4 {[%clk
0:02:27.7]} 10. Qe3 {[%clk 0:01:51.4]} 10... Nc2 {[%clk 0:02:27.4]} 11. Qf4
{[%clk 0:01:50.8]} 11... Nxa1 {[%clk 0:02:17.9]} 12. Ne1 {[%clk 0:01:48.7]}
12... Bg5 {[%clk 0:01:49.2]} 13. Qg4 {[%clk 0:01:36.1]} 13... f5 {[%clk
0:01:24.6]} 14. Qf3 {[%clk 0:01:32]} 14... a4 {[%clk 0:01:14]} 15. Nd2 {[%clk
0:01:19]} 15... Ra6 {[%clk 0:00:55.4]} 16. Nxe4 {[%clk 0:01:13.8]} 16... fxe4
{[%clk 0:00:51.4]} 17. Qa3 {[%clk 0:00:57]} 17... Be7 {[%clk 0:00:27.3]} 18. Qc3
{[%clk 0:00:54.1]} 18... Rc6 {[%clk 0:00:25.1]} 19. c5 {[%clk 0:00:52.3]} 19...
b6 {[%clk 0:00:24.6]} 20. Be3 {[%clk 0:00:51.6]} 20... bxc5 {[%clk 0:00:24.7]}
21. dxc5 {[%clk 0:00:49.7]} 21... Bf6 {[%clk 0:00:23.2]} 22. Bd4 {[%clk
0:00:46]} 22... e5 {[%clk 0:00:22.7]} 23. Bxe5 {[%clk 0:00:43.8]} 23... Bxe5
{[%clk 0:00:21.2]} 24. Qxe5 {[%clk 0:00:43.5]} 24... Qf6 {[%clk 0:00:17.2]} 25.
Qxd5+ {[%clk 0:00:40.4]} 25... Kh8 {[%clk 0:00:17.6]} 26. Rxa1 {[%clk
0:00:39.1]} 26... Qxf2+ {[%clk 0:00:17]} 27. Kh1 {[%clk 0:00:38.9]} 27... Rxc5
{[%clk 0:00:14.9]} 28. Qxe4 {[%clk 0:00:36.7]} 28... Bf5 {[%clk 0:00:14.1]} 29.
Qf3 {[%clk 0:00:34.5]} 29... Qxf3 {[%clk 0:00:13.8]} 30. Bxf3 {[%clk 0:00:34]}
30... Rb8 {[%clk 0:00:12.9]} 31. e4 {[%clk 0:00:31.4]} 31... Be6 {[%clk
0:00:12.2]} 32. a3 {[%clk 0:00:24.8]} 32... Rxb2 {[%clk 0:00:11.6]} 33. Nd3
{[%clk 0:00:24.7]} 33... Rcc2 {[%clk 0:00:06.6]} 34. Nxb2 {[%clk 0:00:24.3]}
34... Rxb2 {[%clk 0:00:07.5]} 35. h4 {[%clk 0:00:21.4]} 35... Rb3 {[%clk
0:00:07.6]} 36. Kg2 {[%clk 0:00:20.6]} 36... c5 {[%clk 0:00:08]} 37. Rc1 {[%clk
0:00:19.3]} 37... c4 {[%clk 0:00:08.2]} 38. Ra1 {[%clk 0:00:19]} 38... Kg8
{[%clk 0:00:08.2]} 39. Bd1 {[%clk 0:00:18.2]} 39... Rb2+ {[%clk 0:00:07]} 40.
Kf3 {[%clk 0:00:18]} 40... c3 {[%clk 0:00:06.9]} 41. Rc1 {[%clk 0:00:17.7]}
41... Bb3 {[%clk 0:00:05.7]} 42. Bxb3+ {[%clk 0:00:16.7]} 42... Rxb3 {[%clk
0:00:05.7]} 43. Ke3 {[%clk 0:00:16.6]} 43... Rxa3 {[%clk 0:00:05.9]} 44. Kd3
{[%clk 0:00:16.6]} 44... c2+ {[%clk 0:00:06.4]} 45. Kxc2 {[%clk 0:00:16.7]}
45... Rxg3 {[%clk 0:00:07.3]} 46. e5 {[%clk 0:00:13.1]} 46... a3 {[%clk
0:00:07.3]} 47. Kb1 {[%clk 0:00:12.6]} 47... Kf7 {[%clk 0:00:07.5]} 48. Rc7+
{[%clk 0:00:12.3]} 48... Ke6 {[%clk 0:00:07.8]} 49. Rc5 {[%clk 0:00:12.4]} 49...
h6 {[%clk 0:00:06.7]} 50. Ra5 {[%clk 0:00:11.8]} 50... g5 {[%clk 0:00:07]} 51.
hxg5 {[%clk 0:00:11.1]} 51... hxg5 {[%clk 0:00:07.9]} 52. Ka2 {[%clk 0:00:09.2]}
52... Re3 {[%clk 0:00:08.4]} 53. Rxa3 {[%clk 0:00:08.4]} 53... Rxa3+ {[%clk
0:00:08.1]} 54. Kxa3 {[%clk 0:00:08.6]} 54... g4 {[%clk 0:00:09]} 55. Kb2 {[%clk
0:00:09.4]} 55... g3 {[%clk 0:00:09.9]} 56. Kc2 {[%clk 0:00:10.1]} 56... g2
{[%clk 0:00:10.8]} 57. Kd3 {[%clk 0:00:10.8]} 57... g1=Q {[%clk 0:00:11]} 58.
Ke4 {[%clk 0:00:11.7]} 58... Qc5 {[%clk 0:00:10.9]} 59. Kd3 {[%clk 0:00:12]}
59... Qxe5 {[%clk 0:00:11.8]} 60. Kc2 {[%clk 0:00:12.4]} 60... Qg3 {[%clk
0:00:11.5]} 61. Kd2 {[%clk 0:00:13.3]} 61... Kd5 {[%clk 0:00:12.1]} 62. Ke2
{[%clk 0:00:13.7]} 62... Kd4 {[%clk 0:00:12.3]} 63. Kd2 {[%clk 0:00:14.6]} 63...
Qh2+ {[%clk 0:00:12.6]} 64. Kc1 {[%clk 0:00:14.6]} 64... Kc3 {[%clk 0:00:12.9]}
65. Kd1 {[%clk 0:00:15.5]} 65... Qd2# {[%clk 0:00:12.9]} 0-1